bitfinex-derivatives/quotes_SOLF0:USTF0_20241107
["timestamp","ask_amount","ask_price","bid_price","bid_amount"]
[1730984735662,1.2339,187.72,187.65,10.20550236]
[1730984735840,2.94,187.75,187.65,10.20550236]
[1730984736240,2.94,187.75,187.65,13.14550236]
[1730984736749,5.6019,187.75,187.72,2.6623]
[1730984737048,13.14550236,187.77,187.72,2.6623]
[1730984737649,2.6618,187.76,187.73,2.6621]
[1730984738258,2.662,187.75,187.7,2.6625]
[1730984738446,14.39810236,187.77,187.65,13.14550236]
[1730984738951,2.6622,187.73,187.65,13.14550236]
[1730984739347,2.6622,187.73,187.69,2.6626]
[1730984739547,2.6622,187.73,187.65,13.14550236]
[1730984740445,2.94,187.75,187.65,13.14550236]
[1730984740748,1.2526,187.77,187.68,10.20550236]
[1730984741452,2.6617,187.76,187.68,10.20550236]
[1730984742151,2.6619,187.75,187.68,10.20550236]
[1730984742655,2.6619,187.75,187.65,2.94]
[1730984742656,2.6619,187.75,187.71,2.6623]
[1730984742856,2.6621,187.74,187.71,2.6623]
[1730984744656,10.20550236,187.76,187.65,13.14550236]
[1730984744947,2.6623,187.72,187.65,13.14550236]
[1730984745554,13.00550236,187.73,187.65,2.94]
[1730984745853,13.00550236,187.73,187.62,10.20550236]
[1730984746249,2.6628,187.69,187.62,10.20550236]
[1730984746554,2.6628,187.69,187.61,4.0186]
[1730984746753,2.6629,187.68,187.61,2.8]
[1730984746950,2.6629,187.68,187.6,10.20550236]
[1730984747544,10.20550236,187.71,187.6,10.20550236]
[1730984747545,2.663,187.67,187.6,10.20550236]
[1730984747747,2.663,187.67,187.63,2.6635]
[1730984748051,2.6632,187.66,187.58,2.8]
[1730984748245,13.00550236,187.68,187.61,2.6639]
[1730984748447,3.8862,187.67,187.61,2.6639]
[1730984748853,3.8862,187.67,187.57,10.20550236]
[1730984749056,3.8862,187.67,187.6,2.6639]
[1730984749450,2.6635,187.64,187.6,2.6639]
[1730984750254,3.8862,187.67,187.62,2.6636]
[1730984750255,6.5493,187.67,187.62,2.6636]
[1730984750654,3.8862,187.67,187.62,2.6636]
[1730984751053,3.8862,187.67,187.63,2.6635]
[1730984751452,10.43406719,187.67,187.63,2.6635]
[1730984752758,13.09706719,187.67,187.63,2.6635]
[1730984754751,10.43406719,187.67,187.62,6.54786719]
[1730984754955,3.8862,187.67,187.62,6.54786719]
[1730984755155,10.43406719,187.67,187.62,6.54786719]
[1730984755352,13.09716719,187.67,187.63,2.6635]
[1730984755658,10.43406719,187.67,187.62,6.54786719]
[1730984755862,10.43406719,187.67,187.57,2.8]
[1730984755863,2.6628,187.69,187.65,2.6632]
[1730984757863,9.21076719,187.68,187.64,2.6634]
[1730984760494,6.54786719,187.66,187.57,2.8]
[1730984760797,6.54786719,187.66,187.59,6.54786719]
[1730984761196,6.54786719,187.64,187.58,6.54786719]
[1730984761703,2.6636,187.63,187.59,2.664]
[1730984762194,6.54786719,187.64,187.6,2.6639]
[1730984762795,9.21126719,187.64,187.6,2.6639]
[1730984764001,6.54786719,187.64,187.58,6.54786719]
[1730984764207,2.6633,187.65,187.61,2.6637]
[1730984764403,11.92836719,187.66,187.6,6.54786719]
[1730984764810,9.12836719,187.66,187.63,2.6635]
[1730984765406,1.3107,187.66,187.62,6.54786719]
[1730984765705,6.54786719,187.69,187.65,2.6633]
[1730984766208,2.6629,187.68,187.65,2.6633]
[1730984766993,2.5462,187.75,187.68,2.6628]
[1730984767211,6.54786719,187.74,187.67,6.54786719]
[1730984767433,1.2575,187.75,187.71,6.54786719]
[1730984767805,1.2575,187.75,187.72,2.6623]
[1730984770405,1.2575,187.75,187.66,2.8]
[1730984770406,2.6615,187.78,187.74,2.6619]
[1730984770604,1.73267,187.8,187.7,10.23120131]
[1730984770798,0.44397,187.8,187.71,2.8]
[1730984771503,2.6613,187.79,187.74,2.6619]
[1730984771892,0.44397,187.8,187.71,2.8]
[1730984772091,2.6615,187.78,187.73,2.662]
[1730984772291,1.3047,187.79,187.73,2.662]
[1730984772999,2.6618,187.76,187.72,2.6623]
[1730984773594,1.3047,187.79,187.68,10.23120131]
[1730984773783,2.6619,187.75,187.68,10.23120131]
[1730984774179,2.8,187.78,187.7,2.6625]
[1730984774379,2.8,187.78,187.68,10.23120131]
[1730984774672,1.3047,187.79,187.71,10.23120131]
[1730984775073,1.3047,187.79,187.74,2.662]
[1730984775976,3.966,187.79,187.75,2.6618]
[1730984776285,1.3047,187.79,187.71,10.23120131]
[1730984777271,0.44397,187.8,187.71,10.23120131]
[1730984777477,0.44397,187.8,187.72,2.68]
[1730984777782,2.6612,187.8,187.76,2.6616]
[1730984778183,2.6612,187.8,187.72,2.68]
[1730984778382,2.6614,187.79,187.74,2.662]
[1730984778786,2.6614,187.79,187.72,2.68]
[1730984779084,2.6614,187.79,187.74,2.662]
[1730984779283,2.6614,187.79,187.72,2.68]
[1730984781583,2.6614,187.79,187.74,2.662]
[1730984781778,10.23120131,187.82,187.72,2.68]
[1730984782375,2.6617,187.77,187.72,2.68]
[1730984782776,2.6617,187.77,187.72,5.3423]
[1730984782977,2.6617,187.77,187.72,2.68]
[1730984783173,2.6617,187.77,187.73,2.662]
[1730984784683,10.23120131,187.82,187.72,2.68]
[1730984784880,2.6618,187.76,187.71,2.6623]
[1730984785088,2.6618,187.76,187.69,2.68]
[1730984785089,10.23120131,187.82,187.69,2.68]
[1730984785390,2.662,187.75,187.71,2.6623]
[1730984785779,3.9245,187.78,187.68,12.91120131]
[1730984785983,2.6619,187.75,187.68,12.91120131]
[1730984786295,3.9245,187.78,187.68,12.91120131]
[1730984786587,10.23120131,187.77,187.66,2.68]
[1730984787085,1.3247,187.76,187.66,2.68]
[1730984787281,2.6623,187.73,187.69,2.6626]
[1730984787485,1.3247,187.76,187.65,10.23120131]
[1730984787684,2.6625,187.71,187.67,2.6629]
[1730984787886,1.284,187.75,187.65,10.23120131]
[1730984788894,1.284,187.75,187.68,2.6629]
[1730984789394,2.6624,187.72,187.68,9.20622807]
[1730984790396,2.6625,187.71,187.68,9.20622807]
[1730984793498,2.6625,187.71,187.68,9.20602807]
[1730984795588,1.284,187.75,187.58,5.3284]
[1730984795794,6.54332807,187.7,187.66,2.663]
[1730984796701,9.20602807,187.7,187.67,2.663]
[1730984796898,6.54332807,187.7,187.66,6.54332807]
[1730984797900,2.6626,187.7,187.67,2.663]
[1730984798102,6.54332807,187.72,187.66,6.54332807]
[1730984798410,6.54332807,187.72,187.67,2.663]
[1730984799094,6.54332807,187.72,187.68,2.6628]
[1730984799291,6.54332807,187.72,187.66,6.54332807]
[1730984799590,6.54332807,187.72,187.62,2.68]
[1730984799591,6.54332807,187.72,187.65,6.54332807]
[1730984799795,6.54332807,187.72,187.67,2.6629]
[1730984799796,2.6625,187.71,187.67,2.6629]
[1730984800095,2.6625,187.71,187.65,6.54332807]
[1730984800700,2.6625,187.71,187.66,2.663]
[1730984800894,2.6625,187.71,187.65,6.54332807]
[1730984801802,2.6625,187.71,187.68,2.6628]
[1730984802695,2.6626,187.7,187.67,2.663]
[1730984802994,6.54332807,187.72,187.67,2.663]
[1730984803308,2.6626,187.7,187.66,2.6631]
[1730984803601,2.6626,187.7,187.65,6.54332807]
[1730984804399,2.6627,187.69,187.65,6.54332807]
[1730984804599,6.54332807,187.72,187.65,6.54332807]
[1730984805000,2.6627,187.7,187.66,2.6631]
[1730984805397,6.54332807,187.68,187.61,31.18689327]
[1730984805593,2.663,187.67,187.63,2.6634]
[1730984805796,6.54332807,187.68,187.62,6.54332807]
[1730984806003,6.54332807,187.66,187.62,6.54332807]
[1730984806202,6.54332807,187.66,187.6,6.54332807]
[1730984806701,2.6633,187.65,187.61,2.6638]
[1730984806904,2.6633,187.65,187.6,6.54332807]
[1730984807603,2.6633,187.65,187.61,6.54332807]
[1730984809707,2.6635,187.64,187.61,2.6638]
[1730984810404,2.66,187.68,187.62,6.54332807]
[1730984810600,2.66,187.68,187.57,2.66]
[1730984810601,2.66,187.68,187.64,6.54332807]
[1730984810800,6.54332807,187.7,187.65,2.6631]
[1730984810801,2.6628,187.69,187.65,2.6631]
[1730984811297,6.54332807,187.71,187.66,6.54332807]
[1730984811503,9.20592807,187.71,187.67,2.663]
[1730984811705,6.54332807,187.71,187.67,2.663]
[1730984811898,6.54332807,187.72,187.67,6.54332807]
[1730984812502,5.72080695,187.8,187.69,6.54332807]
[1730984812708,5.72080695,187.8,187.54,32.43100934]
[1730984812709,6.54332807,187.77,187.71,6.54332807]
[1730984812893,1.2013,187.8,187.72,6.54332807]
[1730984813103,1.2013,187.8,187.72,9.20552807]
[1730984813104,2.6617,187.77,187.72,9.20552807]
[1730984813306,7.78782807,187.78,187.72,9.20552807]
[1730984813702,6.54332807,187.77,187.72,2.6622]
[1730984813910,6.54332807,187.77,187.72,2.6623]
[1730984814095,2.6618,187.76,187.71,6.54332807]
[1730984814301,6.54332807,187.77,187.71,6.54332807]
[1730984814700,6.98117807,187.75,187.7,2.6625]
[1730984815708,9.64317807,187.75,187.7,2.6625]
[1730984815908,6.98117807,187.75,187.69,6.54332807]
[1730984816107,6.98117807,187.75,187.67,2.66]
[1730984816108,2.6624,187.72,187.68,9.20612807]
[1730984816304,6.54332807,187.73,187.68,9.20612807]
[1730984816611,6.54332807,187.73,187.68,6.54332807]
[1730984816999,2.6623,187.72,187.68,6.54332807]
[1730984817710,6.54332807,187.73,187.68,6.54332807]
[1730984817913,2.6624,187.71,187.67,5.323]
[1730984818316,3.09785,187.75,187.68,6.54332807]
[1730984818614,2.6622,187.73,187.69,2.6627]
[1730984818805,6.54332807,187.74,187.68,6.54332807]
[1730984819114,5.75975,187.75,187.7,6.54332807]
[1730984819315,3.09975,187.75,187.7,6.54332807]
[1730984820413,0.43785,187.75,187.7,6.54332807]
[1730984820807,0.43785,187.75,187.72,2.6622]
[1730984823616,0.43785,187.75,187.74,2.662]
[1730984830211,0.43785,187.75,187.73,6.54332807]
[1730984830411,0.43785,187.75,187.73,9.20542807]
[1730984831214,0.43785,187.75,187.72,9.20332807]
[1730984831615,3.09985,187.75,187.72,2.66]
[1730984832419,2.6621,187.74,187.72,2.66]
[1730984833510,6.98117807,187.75,187.69,6.54332807]
[1730984833914,6.98117807,187.75,187.68,2.66]
[1730984833915,6.54332807,187.73,187.68,2.66]
[1730984834114,2.6626,187.7,187.66,6.54332807]
[1730984834317,6.54332807,187.72,187.66,6.54332807]
[1730984834714,2.6627,187.7,187.66,9.20642807]
[1730984835225,2.6627,187.7,187.66,6.54332807]
[1730984835420,2.6627,187.7,187.67,2.6629]
[1730984836917,2.6627,187.7,187.66,6.54332807]
[1730984836918,2.6627,187.7,187.66,9.20642807]
[1730984837221,6.54332807,187.72,187.66,9.20642807]
[1730984837621,6.54332807,187.72,187.66,2.6631]
[1730984837825,6.54332807,187.72,187.66,9.20642807]
[1730984838015,2.6627,187.7,187.66,9.20642807]
[1730984838415,2.6628,187.69,187.66,6.54332807]
[1730984838822,2.6628,187.69,187.65,2.6633]
[1730984840922,6.54332807,187.74,187.68,6.54332807]
[1730984841421,6.54332807,187.74,187.69,2.6627]
[1730984841422,2.6622,187.73,187.69,2.6627]
[1730984842216,6.54332807,187.74,187.7,2.6625]
[1730984842423,1.3081,187.75,187.7,6.54332807]
[1730984842931,2.6621,187.74,187.71,2.6624]
[1730984843422,1.3081,187.75,187.71,2.6624]
[1730984843622,2.6622,187.73,187.71,2.6624]
[1730984844724,2.6622,187.73,187.7,6.54332807]
[1730984844918,2.6622,187.73,187.69,2.6627]
[1730984845321,2.6627,187.7,187.67,2.66]
[1730984845517,6.54332807,187.72,187.67,2.66]
[1730984846924,6.54332807,187.72,187.66,9.20642807]
[1730984847127,6.54332807,187.72,187.67,6.54332807]
[1730984847426,6.54332807,187.72,187.67,9.20622807]
[1730984848730,2.6626,187.7,187.67,9.20622807]
[1730984849931,1.3081,187.75,187.69,6.54332807]
[1730984850127,7.84332807,187.76,187.71,6.54332807]
[1730984850322,2.662,187.75,187.71,9.20562807]
[1730984850722,7.84332807,187.76,187.71,6.54332807]
[1730984850928,1.3,187.76,187.73,2.6621]
[1730984851130,6.54332807,187.78,187.73,2.6621]
[1730984851629,2.6619,187.76,187.73,2.6621]
[1730984854425,2.6613,187.79,187.75,2.6618]
[1730984854623,9.02922807,187.8,187.75,2.6618]
[1730984855935,2.6615,187.78,187.75,2.6618]
[1730984857226,3.9265,187.8,187.76,9.20502807]
[1730984857431,1.2652,187.8,187.76,6.54332807]
[1730984857633,3.9265,187.8,187.76,2.6617]
[1730984857832,1.2652,187.8,187.76,2.6617]
[1730984858433,2.6614,187.78,187.75,2.6618]
[1730984858740,6.54332807,187.77,187.74,2.66]
[1730984859136,2.6618,187.76,187.74,2.66]
[1730984859539,6.54332807,187.77,187.74,2.66]
[1730984859736,2.6619,187.75,187.72,6.54332807]
[1730984860532,2.6619,187.75,187.7,6.54332807]
[1730984860533,2.6621,187.74,187.7,6.54332807]
[1730984861034,2.6621,187.74,187.7,9.20582807]
[1730984861230,2.6622,187.73,187.68,9.20332807]
[1730984861544,6.54332807,187.74,187.68,9.20332807]
[1730984862042,6.54332807,187.74,187.68,6.54332807]
[1730984862430,2.6625,187.71,187.66,6.54332807]
[1730984862936,2.6625,187.71,187.67,2.663]
[1730984863237,2.6626,187.7,187.67,2.663]
[1730984863431,2.6626,187.7,187.67,9.20632807]
[1730984867845,3.9729,187.73,187.69,9.20602807]
[1730984868446,2.6623,187.72,187.69,9.20602807]
[1730984871537,2.6626,187.7,187.65,2.66]
[1730984871736,2.6626,187.7,187.66,6.54332807]
[1730984871942,1.3107,187.73,187.66,6.54332807]
[1730984871943,6.54332807,187.72,187.66,6.54332807]
[1730984872137,2.6627,187.7,187.66,9.20642807]
[1730984872946,2.6627,187.7,187.67,2.663]
[1730984873543,2.6628,187.69,187.66,2.6631]
[1730984873739,2.6628,187.69,187.66,9.20642807]
[1730984873944,2.6628,187.69,187.66,6.54332807]
[1730984875847,2.6628,187.69,187.66,9.20642807]
[1730984878152,2.6628,187.69,187.66,2.6631]
[1730984878963,2.6628,187.69,187.67,2.663]
[1730984879258,6.54332807,187.67,187.6,5.88657905]
[1730984879461,6.54332807,187.61,187.53,6.54332807]
[1730984879661,9.20332807,187.61,187.54,1.33240471]
[1730984879861,9.20332807,187.61,187.53,6.54332807]
[1730984880163,12.03269253,187.71,187.56,6.54332807]
[1730984880164,9.20332807,187.62,187.56,6.54332807]
[1730984880465,6.54332807,187.62,187.56,6.54332807]
[1730984880760,6.54332807,187.62,187.58,2.6642]
[1730984881364,2.6637,187.62,187.58,2.6642]
[1730984882659,2.66,187.63,187.52,14.14242878]
[1730984882864,2.66,187.63,187.56,2.6644]
[1730984883864,2.6641,187.6,187.56,2.6644]
[1730984884664,2.6637,187.63,187.58,2.6642]
[1730984884968,2.66,187.64,187.55,10.23782878]
[1730984885265,5.3234,187.64,187.55,10.23782878]
[1730984885477,2.66,187.64,187.55,10.23782878]
[1730984887771,2.664,187.61,187.57,2.6644]
[1730984887958,2.66,187.64,187.55,10.23782878]
[1730984888262,2.6635,187.64,187.6,2.6639]
[1730984888456,2.66,187.65,187.55,10.23782878]
[1730984888861,2.6636,187.63,187.59,2.664]
[1730984889059,2.66,187.65,187.55,10.23782878]
[1730984889471,2.6636,187.63,187.6,2.6639]
[1730984891964,2.6636,187.63,187.59,2.6641]
[1730984893471,2.6635,187.64,187.6,2.664]
[1730984893771,0.46845,187.7,187.52,3.9046]
[1730984893772,0.46845,187.7,187.63,10.23782878]
[1730984894065,0.46845,187.7,187.67,2.6629]
[1730984894768,0.46845,187.7,187.65,10.23782878]
[1730984895367,0.46845,187.7,187.67,2.6629]
[1730984895566,0.46845,187.7,187.68,10.23782878]
[1730984896072,0.46845,187.7,187.69,2.6627]
[1730984896869,0.46845,187.7,187.68,12.90062878]
[1730984897269,0.46845,187.7,187.68,10.23782878]
[1730984897572,0.46845,187.7,187.69,2.6627]
[1730984897874,0.46845,187.7,187.66,10.23782878]
[1730984898071,0.46845,187.7,187.63,11.55382878]
[1730984898365,0.46845,187.7,187.63,14.21382878]
[1730984898575,0.46845,187.7,187.63,3.976]
[1730984898969,3.13105,187.7,187.63,3.976]
[1730984899272,3.13105,187.7,187.65,2.6633]
[1730984899969,3.13105,187.7,187.63,1.316]
[1730984900171,3.13105,187.7,187.65,2.6633]
[1730984900366,2.6628,187.69,187.65,2.6633]
[1730984901169,2.6629,187.68,187.64,2.6633]
[1730984901870,2.6629,187.68,187.65,2.6633]
[1730984902373,2.6629,187.68,187.62,2.66]
[1730984902374,2.6629,187.68,187.64,2.6634]
[1730984905673,2.6632,187.66,187.62,2.6636]
[1730984908675,6.5479928,187.67,187.61,6.5479928]
[1730984908877,2.66,187.69,187.65,2.6632]
[1730984909080,6.5479928,187.7,187.65,6.5479928]
[1730984909282,9.2079928,187.72,187.67,2.663]
[1730984909488,9.2079928,187.72,187.65,6.5479928]
[1730984910287,3.92239364,187.77,187.68,6.5479928]
[1730984910476,6.5479928,187.74,187.68,6.5479928]
[1730984910975,6.5479928,187.74,187.7,2.6622]
[1730984911381,10.22460157,187.76,187.7,2.6622]
[1730984911577,2.6618,187.74,187.7,2.6622]
[1730984911771,10.22460157,187.76,187.65,2.66]
[1730984912785,2.6622,187.71,187.68,2.6625]
[1730984912983,10.22460157,187.73,187.65,2.66]
[1730984913372,2.6623,187.7,187.66,2.6628]
[1730984914687,2.6622,187.71,187.67,2.6626]
[1730984916175,10.22460157,187.73,187.67,2.6626]
[1730984916378,2.6624,187.7,187.66,2.6628]
[1730984916881,10.22460157,187.73,187.64,2.66]
[1730984917082,10.22460157,187.73,187.62,12.88460157]
[1730984917280,2.66,187.72,187.62,12.88460157]
[1730984917588,2.6626,187.68,187.64,2.6631]
[1730984919381,2.66,187.72,187.62,10.22460157]
[1730984919589,2.6624,187.7,187.66,2.6628]
[1730984920584,2.6622,187.71,187.67,2.6626]
[1730984923796,5.322,187.72,187.68,2.6625]
[1730984923988,10.22460157,187.76,187.68,2.6625]
[1730984924189,12.88460157,187.76,187.64,10.22460157]
[1730984924591,2.6619,187.73,187.69,2.6623]
[1730984927091,2.6621,187.72,187.69,2.6623]
[1730984927290,12.88460157,187.76,187.64,10.22460157]
[1730984927993,12.88460157,187.76,187.67,2.6626]
[1730984928193,10.22460157,187.74,187.61,12.88460157]
[1730984928385,10.22460157,187.74,187.61,10.22460157]
[1730984928692,2.6624,187.7,187.66,2.6628]
[1730984928893,2.6624,187.7,187.61,10.22460157]
[1730984928894,10.22460157,187.74,187.63,2.66]
[1730984929096,10.22460157,187.74,187.61,12.88460157]
[1730984929392,10.22460157,187.74,187.64,2.6631]
[1730984929697,1.2764,187.73,187.64,2.6631]
[1730984930097,2.6626,187.68,187.64,2.6631]
[1730984934293,2.6624,187.7,187.65,2.6629]
[1730984934491,9.20666857,187.71,187.65,2.6629]
[1730984934891,2.6625,187.69,187.65,9.20956857]
[1730984935304,2.6625,187.69,187.66,2.6628]
[1730984942903,9.20666857,187.71,187.65,6.54666857]
[1730984943106,9.20666857,187.71,187.65,9.20956857]
[1730984943711,2.6626,187.69,187.65,9.20956857]
[1730984943902,2.6626,187.69,187.66,2.6629]
[1730984944302,2.6626,187.69,187.65,6.54666857]
[1730984944604,2.6624,187.7,187.67,2.6627]
[1730984945004,6.54666857,187.71,187.67,2.6627]
[1730984945805,2.6625,187.69,187.67,2.6627]
[1730984947109,2.6625,187.69,187.66,2.6628]
[1730984948002,6.54666857,187.69,187.61,2.66]
[1730984948203,6.54666857,187.69,187.62,6.54666857]
[1730984948620,2.6627,187.67,187.64,2.6631]
[1730984949021,2.6627,187.67,187.64,6.54666857]
[1730984949226,6.54666857,187.7,187.64,6.54666857]
[1730984949727,2.6625,187.69,187.66,2.6628]
[1730984952723,6.54666857,187.7,187.67,2.6626]
[1730984952724,9.20896857,187.7,187.67,2.6626]
[1730984953021,2.66,187.72,187.66,6.54666857]
[1730984953623,2.66,187.76,187.68,6.54666857]
[1730984953920,6.54666857,187.74,187.68,6.54666857]
[1730984955123,2.6621,187.72,187.69,2.6624]
[1730984955314,6.54666857,187.71,187.66,6.54666857]
[1730984955818,2.6624,187.7,187.66,9.20936857]
[1730984956017,2.6624,187.7,187.66,6.54666857]
[1730984956813,6.54666857,187.72,187.66,6.54666857]
[1730984957018,2.6622,187.71,187.68,2.6626]
[1730984958321,6.54666857,187.72,187.67,2.6627]
[1730984958829,2.6622,187.71,187.68,2.6626]
[1730984965030,6.54666857,187.72,187.66,6.54666857]
[1730984965232,9.20876857,187.72,187.69,2.6624]
[1730984965524,6.54666857,187.75,187.69,6.54666857]
[1730984965728,2.6618,187.74,187.71,2.6622]
[1730984966629,6.54666857,187.73,187.7,2.6623]
[1730984967527,2.6618,187.74,187.7,2.6623]
[1730984967728,6.54666857,187.73,187.7,2.6623]
[1730984968427,2.6621,187.72,187.68,2.6625]
[1730984969327,2.6621,187.72,187.67,2.6626]
[1730984969328,2.6622,187.71,187.67,2.6626]
[1730984969538,6.54666857,187.68,187.52,41.07220251]
[1730984969730,6.54666857,187.67,187.59,1.33211217]
[1730984969924,2.663,187.66,187.61,9.21026857]
[1730984970130,6.54666857,187.67,187.61,9.21026857]
[1730984970335,2.66,187.68,187.61,9.21026857]
[1730984970632,6.54666857,187.66,187.61,9.21026857]
[1730984971233,2.6631,187.65,187.61,2.6636]
[1730984971429,2.6631,187.65,187.61,9.21026857]
[1730984974236,2.6632,187.64,187.61,2.6636]
[1730984974836,6.54666857,187.66,187.6,6.54666857]
[1730984975339,6.54666857,187.66,187.62,2.6634]
[1730984975639,6.54666857,187.66,187.6,6.54666857]
[1730984976236,6.54666857,187.66,187.6,9.21026857]
[1730984976237,2.6632,187.64,187.6,9.21026857]
[1730984978231,2.6631,187.65,187.6,9.21026857]
[1730984978437,6.54666857,187.66,187.6,9.21026857]
[1730984978637,6.54666857,187.65,187.6,9.21026857]
[1730984979036,2.6632,187.64,187.6,9.21026857]
[1730984980942,6.54666857,187.6,187.52,6.54666857]
[1730984981130,6.54666857,187.6,187.48,2.66]
[1730984981131,6.54666857,187.58,187.48,2.66]
[1730984981330,6.54666857,187.58,187.53,2.6646]
[1730984981331,2.6643,187.57,187.53,2.6646]
[1730984982330,2.6643,187.57,187.55,6.54666857]
[1730984983338,1.2186,187.62,187.55,6.54666857]
[1730984983635,2.6638,187.6,187.57,6.54666857]
[1730984984038,1.2186,187.62,187.57,6.54666857]
[1730984984231,5.2031,187.63,187.58,6.54666857]
[1730984984834,2.6636,187.61,187.58,9.21066857]
[1730984985033,6.54666857,187.64,187.58,9.21066857]
[1730984985034,9.20666857,187.64,187.58,6.54666857]
[1730984986841,2.6635,187.62,187.59,2.6639]
[1730984988445,2.6635,187.62,187.58,9.21066857]
[1730984990245,2.6635,187.62,187.59,2.6639]
[1730984992144,2.6635,187.62,187.58,2.6639]
[1730984992542,2.6635,187.62,187.57,6.54666857]
[1730984992747,2.6635,187.62,187.59,2.6638]
[1730984993753,2.6633,187.63,187.59,6.54666857]
[1730984993951,2.6633,187.63,187.6,2.6636]
[1730984994844,2.66,187.65,187.59,6.54666857]
[1730984995042,2.66,187.65,187.61,2.6635]
[1730984996153,2.6633,187.63,187.6,2.6637]
[1730985002142,9.20666857,187.69,187.61,6.54666857]
[1730985002447,2.66,187.69,187.63,6.54666857]
[1730985002750,2.663,187.66,187.63,6.54666857]
[1730985003144,2.663,187.65,187.63,6.54666857]
[1730985004049,2.663,187.65,187.62,2.6634]
[1730985004243,2.6634,187.63,187.56,2.6642]
[1730985004449,6.54666857,187.62,187.57,6.54666857]
[1730985004952,2.6639,187.59,187.55,6.54666857]
[1730985005859,6.54666857,187.6,187.55,6.54666857]
[1730985006052,2.664,187.58,187.55,9.21106857]
[1730985006951,2.6646,187.54,187.43,1.3184]
[1730985007156,9.21126857,187.54,187.49,6.54666857]
[1730985007656,2.6649,187.52,187.49,6.54666857]
[1730985008256,6.54666857,187.54,187.49,6.54666857]
[1730985008458,2.6647,187.53,187.49,6.54666857]
[1730985008652,2.6647,187.53,187.48,2.6654]
[1730985008854,6.54666857,187.54,187.49,6.54666857]
[1730985009049,6.54666857,187.55,187.49,6.54666857]
[1730985010047,2.6647,187.54,187.49,9.21196857]
[1730985011664,2.66,187.55,187.51,2.665]
[1730985012259,9.20666857,187.56,187.51,2.665]
[1730985012853,2.6645,187.55,187.51,2.665]
[1730985014161,2.6645,187.55,187.5,2.6651]
[1730985014162,2.6647,187.54,187.5,2.6651]
[1730985014458,6.54666857,187.55,187.5,2.6651]
[1730985014766,6.54666857,187.55,187.47,6.54666857]
[1730985014767,6.54666857,187.53,187.47,6.54666857]
[1730985014957,9.21146857,187.53,187.49,2.6652]
[1730985015456,6.54666857,187.53,187.44,3.8948]
[1730985015654,2.6652,187.5,187.47,6.54666857]
[1730985015855,6.54666857,187.53,187.47,6.54666857]
[1730985016453,2.66,187.53,187.47,6.54666857]
[1730985016656,9.20666857,187.53,187.47,6.54666857]
[1730985017464,11.87136857,187.53,187.49,2.6652]
[1730985018864,6.54666857,187.53,187.48,2.6654]
[1730985019254,2.6651,187.51,187.47,2.6655]
[1730985020967,2.6651,187.51,187.41,2.6664]
[1730985020968,6.54666857,187.51,187.41,2.6664]
[1730985021171,6.54666857,187.51,187.46,6.54666857]
[1730985021368,2.66,187.54,187.46,6.54666857]
[1730985021369,2.6649,187.52,187.46,6.54666857]
[1730985021573,6.54666857,187.53,187.46,6.54666857]
[1730985022174,2.665,187.52,187.46,6.54666857]
[1730985022369,2.665,187.52,187.48,2.6653]
[1730985023576,6.54666857,187.53,187.48,2.6653]
[1730985023763,2.6651,187.51,187.48,2.6653]
[1730985025185,2.6649,187.52,187.48,2.6653]
[1730985025982,2.6649,187.52,187.49,2.6653]
[1730985026881,2.6649,187.52,187.48,2.6653]
[1730985027282,2.6648,187.53,187.49,6.54666857]
[1730985027485,2.66,187.54,187.51,2.665]
[1730985027682,2.66,187.54,187.49,6.54666857]
[1730985027683,6.54666857,187.55,187.49,6.54666857]
[1730985027886,6.54666857,187.55,187.41,5.3327]
[1730985027887,6.54666857,187.55,187.5,6.54666857]
[1730985028089,6.54666857,187.55,187.52,2.6648]
[1730985028785,9.21116857,187.55,187.52,2.6648]
[1730985030076,6.54666857,187.55,187.46,2.5698]
[1730985030285,2.6647,187.54,187.5,2.6651]
[1730985030482,6.54666857,187.54,187.48,6.54666857]
[1730985030983,6.54666857,187.52,187.35,5.3344]